bitfinex/quotes_BTCUSD_20250225
["timestamp","ask_amount","ask_price","bid_price","bid_amount"]
[1740472247856,2.52282945,90004.0,90003.0,1.89627101]
[1740472248057,2.49882945,90004.0,90003.0,1.90327101]
[1740472248499,2.49882945,90004.0,90003.0,1.39627101]
[1740472248701,2.49882945,90004.0,90003.0,1.90327101]
[1740472249027,2.69710207,90004.0,90003.0,1.90327101]
[1740472249649,2.69391238,90004.0,90003.0,1.90327101]
[1740472250016,2.69391238,90004.0,90003.0,1.89627101]
[1740472250219,2.69491238,90004.0,90003.0,1.90327101]
[1740472250688,2.69391238,90004.0,90003.0,1.89627101]
[1740472250971,2.70023338,90004.0,90003.0,1.90327101]
[1740472251377,0.493773,90004.0,90003.0,1.85347101]
[1740472251610,2.65839765,90004.0,90003.0,1.82207101]
[1740472251812,2.19923357,90004.0,90003.0,1.81507101]
[1740472251960,1.09953679,90004.0,90003.0,1.81507101]
[1740472252164,1.09969678,90004.0,90003.0,1.81507101]
[1740472252372,0.0016966,90014.0,90013.0,0.5]
[1740472252537,2.20093017,90014.0,90013.0,0.54877101]
[1740472252938,2.19923357,90014.0,90013.0,0.54877101]
[1740472253551,2.19923357,90014.0,90013.0,0.98220901]
[1740472253761,2.19923357,90014.0,90013.0,0.98920901]
[1740472253967,2.19923357,90014.0,90013.0,0.98220901]
[1740472254394,1.09969678,90014.0,90013.0,0.98220901]
[1740472254635,2.19923357,90014.0,90013.0,0.98220901]
[1740472254796,0.0016962,90015.0,90014.0,0.01454085]
[1740472255086,0.0016962,90015.0,90014.0,0.26154813]
[1740472255087,2.19993672,90015.0,90014.0,0.26154813]
[1740472255273,2.19923357,90015.0,90014.0,0.26077101]
[1740472255906,2.165792,90015.0,90014.0,0.26077101]
[1740472256114,2.19923357,90015.0,90014.0,1.66867101]
[1740472256319,0.09042034,90034.0,90033.0,0.51454085]
[1740472256568,2.28965391,90034.0,90033.0,1.41507101]
[1740472256740,2.28866801,90034.0,90033.0,1.41507101]
[1740472256950,2.28866801,90034.0,90033.0,1.44850001]
[1740472257312,2.28866801,90034.0,90033.0,1.45091916]
[1740472257791,2.28866801,90034.0,90033.0,1.35091916]
[1740472258010,2.28866801,90034.0,90033.0,1.85791916]
[1740472258170,2.28866801,90034.0,90033.0,1.30811916]
[1740472258549,2.28866801,90034.0,90033.0,1.31511916]
[1740472258957,2.28866801,90034.0,90033.0,1.32966001]
[1740472260378,2.19923357,90034.0,90033.0,1.32966001]
[1740472261969,2.19923357,90034.0,90033.0,1.00616001]
[1740472262205,2.19923357,90034.0,90033.0,0.97465916]
[1740472262413,2.19923357,90034.0,90033.0,0.99161916]
[1740472262622,2.19923357,90034.0,90033.0,0.50616001]
[1740472262954,2.19923357,90034.0,90033.0,1.00616001]
[1740472263495,2.19923357,90034.0,90033.0,0.99916001]
[1740472263703,2.19923357,90034.0,90033.0,1.00616001]
[1740472264063,2.19923357,90034.0,90033.0,0.99916001]
[1740472264413,2.19923357,90034.0,90033.0,1.00616001]
[1740472264645,2.19923357,90034.0,90033.0,0.99740393]
[1740472264871,1.09969678,90034.0,90033.0,0.99740393]
[1740472265077,2.19923357,90034.0,90033.0,1.00440393]
[1740472265270,2.19923357,90034.0,90033.0,0.99740393]
[1740472265422,2.19923357,90034.0,90033.0,0.50440393]
[1740472265617,2.19923357,90034.0,90033.0,0.98986308]
[1740472265815,2.20751647,90034.0,90033.0,0.98986308]
[1740472266042,2.20751647,90034.0,90033.0,0.95643408]
[1740472266244,2.35751647,90034.0,90033.0,0.43947408]
[1740472266590,2.35751647,90034.0,90033.0,0.42300493]
[1740472266764,2.35751647,90034.0,90033.0,0.38257578]
[1740472266967,2.35921307,90034.0,90033.0,0.34914663]
[1740472267641,2.35921307,90034.0,90033.0,0.35614663]
[1740472267831,2.35921307,90034.0,90033.0,0.29875748]
[1740472268034,2.35921307,90034.0,90033.0,0.28924833]
[1740472268226,2.35093017,90034.0,90033.0,0.28924833]
[1740472268434,2.35093017,90034.0,90033.0,0.42392]
[1740472269011,2.35093017,90034.0,90033.0,0.40741085]
[1740472269145,2.35093017,90034.0,90033.0,0.3739817]
[1740472269484,2.35093017,90034.0,90033.0,0.4]
[1740472269888,2.35093017,90034.0,90033.0,0.36657085]
[1740472270195,2.35093017,90034.0,90033.0,0.3401417]
[1740472270615,2.35093017,90034.0,90033.0,0.907]
[1740472270794,2.35093017,90034.0,90033.0,0.9]
[1740472271215,2.35093017,90034.0,90033.0,0.907]
[1740472271389,2.35093017,90034.0,90033.0,0.9]
[1740472271594,2.41093017,90034.0,90033.0,0.32476]
[1740472271773,2.53833017,90034.0,90033.0,0.03842187]
[1740472271983,0.15,90027.0,90017.0,0.01692]
[1740472272191,0.08943444,90022.0,90018.0,0.05035237]
[1740472272389,0.15,90021.0,90019.0,0.03265377]
[1740472273236,0.15,90021.0,90019.0,0.03343253]
[1740472273432,0.15,90021.0,90020.0,0.03265377]
[1740472273841,0.151,90021.0,90019.0,0.03965377]
[1740472274047,0.151,90021.0,90020.0,0.03265377]
[1740472274443,0.152,90021.0,90019.0,0.03965377]
[1740472274671,0.151,90021.0,90020.0,0.43265377]
[1740472275052,0.152,90021.0,90020.0,0.43265377]
[1740472275411,0.002,90021.0,90020.0,0.43265377]
[1740472275614,0.002,90021.0,90020.0,0.44719462]
[1740472275815,0.002,90021.0,90020.0,0.43265377]
[1740472276015,1.09953679,90022.0,90020.0,0.44719462]
[1740472276240,2.34923357,90022.0,90021.0,0.03265377]
[1740472276436,2.34923357,90022.0,90021.0,0.03343208]
[1740472276640,2.34923357,90022.0,90021.0,0.44797293]
[1740472276841,2.34923357,90022.0,90021.0,0.44719462]
[1740472277043,2.34923357,90022.0,90021.0,0.44619462]
[1740472277635,2.35023357,90022.0,90021.0,0.45319462]
[1740472277834,2.34923357,90022.0,90021.0,0.44619462]
[1740472278347,2.35023357,90022.0,90021.0,0.45319462]
[1740472278570,2.35023357,90022.0,90021.0,0.44619462]
[1740472278952,2.35023357,90022.0,90021.0,0.76969462]
[1740472278953,2.20023357,90022.0,90021.0,0.76969462]
[1740472279732,2.20023357,90022.0,90021.0,1.26969462]
[1740472279903,2.20023357,90022.0,90021.0,1.27669462]
[1740472280163,2.19923357,90022.0,90021.0,1.26969462]
[1740472280553,1.09969678,90022.0,90021.0,0.79357462]
[1740472280760,2.34923357,90022.0,90021.0,1.25515377]
[1740472280963,2.34923357,90022.0,90021.0,1.27903377]
[1740472281790,2.34923357,90022.0,90021.0,1.27203377]
[1740472282190,2.19923357,90022.0,90021.0,1.28657462]
[1740472282967,2.19923357,90022.0,90021.0,1.82937462]
[1740472283171,2.19923357,90022.0,90021.0,1.83637462]
[1740472283325,2.19923357,90022.0,90021.0,1.82937462]
[1740472283736,2.19923357,90022.0,90021.0,1.83637462]
[1740472283932,2.19923357,90022.0,90021.0,1.82937462]
[1740472284115,2.16579528,90022.0,90021.0,1.82937462]
[1740472284319,2.19923357,90022.0,90021.0,1.83637462]
[1740472284632,2.19923357,90022.0,90021.0,1.82937462]
[1740472284832,2.19923357,90022.0,90021.0,1.83637462]
[1740472286296,1.09969678,90022.0,90021.0,1.83637462]
[1740472286526,2.19923357,90022.0,90021.0,1.83637462]
[1740472286697,2.19923357,90022.0,90021.0,1.82937462]
[1740472286899,2.19923357,90022.0,90021.0,1.83637462]
[1740472287298,2.19923357,90022.0,90021.0,1.82937462]
[1740472288319,2.19923357,90022.0,90021.0,1.83637462]
[1740472288520,2.19923357,90022.0,90021.0,1.82937462]
[1740472289384,1.09969678,90022.0,90021.0,1.82937462]
[1740472289586,2.19923357,90022.0,90021.0,1.82937462]
[1740472289787,2.19923357,90022.0,90021.0,1.86280762]
[1740472289987,2.19923357,90022.0,90021.0,1.86980762]
[1740472290187,2.19923357,90022.0,90021.0,1.93675762]
[1740472290767,1.09969678,90022.0,90021.0,1.93675762]
[1740472290943,2.19923357,90022.0,90021.0,1.93060582]
[1740472291141,2.20092997,90022.0,90021.0,2.63760582]
[1740472291347,2.16749365,90022.0,90021.0,2.63060582]
[1740472291483,2.19923357,90022.0,90021.0,2.63060582]
[1740472291684,2.19923357,90022.0,90021.0,2.63760582]
[1740472292707,2.19923357,90022.0,90021.0,3.50270582]
[1740472293241,2.19923357,90022.0,90021.0,3.49570582]
[1740472293457,0.06765549,90045.0,90044.0,0.6173]
[1740472293684,2.26688906,90045.0,90044.0,0.54619462]
[1740472293882,2.26688906,90045.0,90044.0,0.86969462]
[1740472294222,2.26688906,90045.0,90044.0,0.90311662]
[1740472294597,2.26688906,90045.0,90044.0,2.01011662]
[1740472294783,2.26688906,90045.0,90044.0,2.00311662]
[1740472296096,2.26688906,90045.0,90044.0,2.01845789]
[1740472296323,2.19923357,90045.0,90044.0,2.01845789]
[1740472296452,2.19923357,90045.0,90044.0,2.00311662]
[1740472296645,2.19923357,90045.0,90044.0,2.01011662]
[1740472297047,2.19923357,90045.0,90044.0,2.07706662]
[1740472297732,2.19923357,90045.0,90044.0,2.01011662]
[1740472298201,2.16581162,90045.0,90044.0,2.01011662]
[1740472298436,2.19923357,90045.0,90044.0,2.01011662]
[1740472298779,2.19923357,90045.0,90044.0,2.67021662]
[1740472298981,2.19923357,90045.0,90044.0,2.55291662]
[1740472299183,1.09969678,90045.0,90044.0,2.66321662]
[1740472299383,2.20023357,90045.0,90044.0,2.67021662]
[1740472299817,2.20023357,90045.0,90044.0,2.73016662]
[1740472300207,1.10069678,90045.0,90044.0,2.73716662]
[1740472300445,2.19923357,90045.0,90044.0,2.73016662]
[1740472300805,2.20023357,90045.0,90044.0,2.73716662]
[1740472301012,2.20023357,90045.0,90044.0,2.73016662]
[1740472301383,2.19923357,90045.0,90044.0,2.73016662]
[1740472301896,1.09969678,90045.0,90044.0,2.73016662]
[1740472302099,2.19923357,90045.0,90044.0,2.73016662]
[1740472302909,2.19923357,90045.0,90044.0,2.73716662]
[1740472303111,0.0099695,90054.0,90048.0,0.18425]
[1740472303334,2.20920307,90054.0,90053.0,0.18425]
[1740472303516,2.19923357,90054.0,90053.0,0.23122037]
[1740472303711,2.19923357,90054.0,90053.0,0.23044462]
[1740472304124,2.19923357,90054.0,90053.0,0.16349462]
[1740472304325,2.19923357,90054.0,90053.0,1.73057038]
[1740472304501,2.19923357,90054.0,90053.0,1.72979462]
[1740472305148,2.19923357,90054.0,90053.0,1.73679462]
[1740472305509,2.19923357,90054.0,90053.0,2.13679462]
[1740472306616,2.19923357,90054.0,90053.0,2.12979462]
[1740472306825,2.19923357,90054.0,90053.0,2.29715462]
[1740472307023,2.19923357,90054.0,90053.0,2.29015462]
[1740472307421,2.19923357,90054.0,90053.0,2.29715462]
[1740472307608,2.19923357,90054.0,90053.0,2.29015462]
[1740472307816,2.19923357,90054.0,90053.0,2.27561377]
[1740472308008,2.19923357,90054.0,90053.0,2.29941377]
[1740472308615,2.19923357,90054.0,90053.0,2.31395462]
[1740472309246,2.19923357,90054.0,90053.0,2.30695462]
[1740472309732,2.19923357,90054.0,90053.0,2.32883346]
[1740472310152,2.19923357,90054.0,90053.0,2.33583346]
[1740472311007,2.19923357,90054.0,90053.0,2.32883346]
[1740472311209,2.19923357,90054.0,90053.0,2.33583346]
[1740472311860,2.19923357,90054.0,90053.0,2.40278346]
[1740472312104,2.19923357,90054.0,90053.0,3.26788346]
[1740472312293,2.16582682,90054.0,90053.0,3.26788346]
[1740472312519,1.09969678,90054.0,90053.0,3.26088346]
[1740472312707,1.10938519,90063.0,90055.0,0.79199085]
[1740472312912,1.09969678,90059.0,90057.0,0.18425]
[1740472313117,1.09969678,90059.0,90058.0,1.06586622]
[1740472313324,1.09969678,90059.0,90058.0,1.56509085]
[1740472313495,1.09969678,90059.0,90058.0,1.56293999]
[1740472313888,1.09969678,90059.0,90058.0,2.26293999]
[1740472314699,1.09969678,90059.0,90058.0,2.2739896]
[1740472315645,1.09969678,90059.0,90058.0,2.6809896]
[1740472315970,1.09969678,90059.0,90058.0,2.6739896]
[1740472316173,1.09969678,90059.0,90058.0,2.6809896]
[1740472316701,1.09969678,90059.0,90058.0,2.6739896]
[1740472316902,1.09969678,90059.0,90058.0,2.6809896]
[1740472317127,1.09969678,90059.0,90058.0,2.6739896]
[1740472317494,1.09969678,90059.0,90058.0,2.6809896]
[1740472318469,1.09969678,90059.0,90058.0,2.70316722]
[1740472318669,1.06629443,90059.0,90058.0,2.72957522]
[1740472318872,1.09969678,90059.0,90058.0,2.72957522]
[1740472319127,1.09969678,90059.0,90058.0,2.7143976]
[1740472319336,1.09969678,90059.0,90058.0,2.7073976]
[1740472319744,1.09969678,90059.0,90058.0,2.74582004]
[1740472319899,1.09969678,90059.0,90058.0,2.73882004]
[1740472320223,1.09969678,90059.0,90058.0,2.74582004]
[1740472320399,1.09969678,90059.0,90058.0,2.73882004]
[1740472320801,1.09969678,90059.0,90058.0,4.74582004]
[1740472321928,1.09969678,90059.0,90058.0,4.73882004]
[1740472322389,1.09969678,90059.0,90058.0,4.74582004]
[1740472322729,1.09969678,90059.0,90058.0,4.73882004]
[1740472322935,1.09969678,90059.0,90058.0,4.74582004]
[1740472323144,1.09969678,90059.0,90058.0,4.96089804]
[1740472323495,1.09969678,90059.0,90058.0,4.96789804]
[1740472323674,1.09969678,90059.0,90058.0,4.73882004]
[1740472323879,1.09953679,90073.0,90069.0,0.69879085]
[1740472324096,1.09969678,90070.0,90069.0,2.29651329]
[1740472324912,1.09969678,90070.0,90069.0,2.27350718]
[1740472325120,1.09969678,90070.0,90069.0,2.19201633]
[1740472325521,1.06630191,90070.0,90069.0,2.60655718]
[1740472325728,1.06630191,90070.0,90069.0,2.61355718]
[1740472325923,1.03290704,90070.0,90069.0,2.61355718]
[1740472326123,0.99951217,90070.0,90069.0,2.60655718]
[1740472326407,0.9661173,90070.0,90069.0,2.61355718]
[1740472326635,0.08943444,90072.0,90070.0,0.01454085]
[1740472326840,1.18913122,90072.0,90071.0,0.98437508]
[1740472327011,1.18913122,90072.0,90071.0,0.9836]
[1740472327225,1.25733122,90072.0,90071.0,1.50032]
[1740472327552,1.25723571,90072.0,90071.0,1.90032]
[1740472327869,1.25723571,90072.0,90071.0,2.60032]
[1740472328101,1.30513571,90072.0,90071.0,1.6]
[1740472328219,1.30513571,90072.0,90071.0,1.48862]
[1740472328871,1.17903571,90072.0,90071.0,2.40108396]
[1740472329337,1.17903571,90072.0,90071.0,1.90108396]
[1740472329551,1.17903571,90072.0,90071.0,1.12702311]
[1740472329833,1.30103571,90072.0,90071.0,1.14374311]
[1740472330448,1.30103571,90072.0,90071.0,0.87884311]
[1740472330678,1.30103571,90072.0,90071.0,1.27884311]
[1740472330876,1.30103571,90072.0,90071.0,1.27184311]
[1740472331140,1.22169678,90072.0,90071.0,1.82918396]
[1740472331303,1.22169678,90072.0,90071.0,1.83618396]
[1740472331484,1.22169678,90072.0,90071.0,2.53618396]
[1740472331705,1.09969678,90072.0,90071.0,2.53618396]
[1740472332159,1.09969678,90072.0,90071.0,2.72043396]
[1740472332719,1.09953679,90073.0,90072.0,0.08149085]
[1740472332954,2.19923357,90073.0,90072.0,0.81388898]
[1740472333159,2.19923357,90073.0,90072.0,0.93041396]
[1740472333361,2.19923357,90073.0,90072.0,1.43041396]
[1740472333784,2.19923357,90073.0,90072.0,1.43875024]
[1740472334047,2.19923357,90073.0,90072.0,1.44575024]
[1740472334310,2.19923357,90073.0,90072.0,1.43875024]
[1740472334475,2.19923357,90073.0,90072.0,1.26150024]
[1740472334919,2.19923357,90073.0,90072.0,1.32145024]
[1740472335082,2.16582494,90073.0,90072.0,2.98590024]
[1740472335258,2.19923357,90073.0,90072.0,2.98590024]
[1740472335459,1.09969678,90073.0,90072.0,3.06240024]
[1740472335798,2.19923357,90073.0,90072.0,2.52080024]
[1740472336002,1.09953679,90073.0,90072.0,2.52080024]
[1740472336206,2.19923357,90073.0,90072.0,2.52780024]
[1740472336504,2.19923357,90073.0,90072.0,2.52080024]
[1740472336926,2.19923357,90073.0,90072.0,2.52780024]
[1740472337089,2.19923357,90073.0,90072.0,2.52080024]
[1740472337411,2.19923357,90073.0,90072.0,2.52780024]
[1740472337615,2.19923357,90073.0,90072.0,2.52080024]
[1740472337926,2.19923357,90073.0,90072.0,2.52780024]
[1740472338124,2.16582494,90073.0,90072.0,2.52780024]
[1740472338351,2.12741631,90073.0,90072.0,2.52780024]
[1740472339043,2.12741631,90073.0,90072.0,2.68808024]
[1740472339457,2.12741631,90073.0,90072.0,2.68108024]
[1740472339753,1.09969678,90073.0,90072.0,2.68808024]
[1740472339981,2.19923357,90073.0,90072.0,2.68108024]
[1740472340186,2.20093017,90073.0,90072.0,2.68808024]
[1740472340566,2.20093017,90073.0,90072.0,2.68108024]
[1740472340715,2.20093017,90073.0,90072.0,2.68808024]
[1740472341109,2.20093017,90073.0,90072.0,2.68108024]
[1740472341424,2.20093017,90073.0,90072.0,2.68808024]
[1740472341950,2.20093017,90073.0,90072.0,4.70476024]
[1740472342542,2.20093017,90073.0,90072.0,4.69776024]
[1740472342949,2.20093017,90073.0,90072.0,4.70476024]
[1740472343163,2.20093017,90073.0,90072.0,4.69776024]
[1740472343361,2.19923357,90073.0,90072.0,4.69776024]
[1740472343561,2.19923357,90073.0,90072.0,4.70476024]
[1740472343774,2.19923357,90073.0,90072.0,4.69776024]
[1740472344112,1.09969678,90073.0,90072.0,4.70476024]
[1740472344408,0.0016976,90075.0,90074.0,0.18106985]
[1740472344610,0.0098429,90079.0,90076.0,0.166526]
[1740472344917,1.09953679,90090.0,90089.0,0.51454085]
[1740472345085,1.09969678,90090.0,90089.0,1.41246396]
[1740472345289,1.06630325,90090.0,90089.0,1.53676396]
[1740472345495,1.09969678,90090.0,90089.0,2.23676396]
[1740472345898,1.09969678,90096.0,90091.0,0.1173]
[1740472346101,0.0016986,90106.0,90099.0,0.51454085]
[1740472346102,2.20093017,90105.0,90099.0,0.51454085]
[1740472346297,2.19923357,90105.0,90101.0,0.01454085]
[1740472346496,2.19923357,90105.0,90103.0,0.01454085]
[1740472346739,2.19923357,90105.0,90104.0,0.91323753]
[1740472346939,2.19923357,90105.0,90104.0,0.91246396]
[1740472347150,1.09953679,90105.0,90104.0,0.92061619]
[1740472347361,0.0016986,90106.0,90105.0,0.18101285]
[1740472347558,1.09953679,90115.0,90112.0,0.6173]
[1740472347869,1.09969678,90113.0,90112.0,2.39486396]
[1740472348450,1.09969678,90113.0,90112.0,2.67756396]
[1740472348623,1.09969678,90113.0,90112.0,3.37756396]
[1740472349326,1.09969678,90113.0,90112.0,3.39420396]
[1740472349799,1.09969678,90113.0,90112.0,3.40120396]
[1740472349956,1.09969678,90113.0,90112.0,3.40512546]
[1740472350144,0.05604413,90114.0,90113.0,0.01454085]
[1740472350344,1.06630647,90114.0,90113.0,0.04693731]
[1740472350542,1.09969678,90114.0,90113.0,0.04693731]
[1740472350747,1.09969678,90114.0,90113.0,0.74693731]
[1740472350947,1.09969678,90114.0,90113.0,0.74616396]
[1740472351556,1.09969678,90114.0,90113.0,3.22436396]
[1740472352159,1.09969678,90114.0,90113.0,3.24100396]
[1740472352359,1.04537995,90114.0,90113.0,4.64890396]
[1740472352558,1.01198964,90114.0,90113.0,4.64890396]
[1740472352818,0.97656402,90114.0,90113.0,4.64890396]
[1740472353031,0.94317371,90114.0,90113.0,4.65590396]
[1740472353230,0.94030251,90114.0,90113.0,4.64890396]
[1740472353410,0.40461997,90114.0,90113.0,4.64890396]
[1740472353639,0.40461997,90114.0,90113.0,4.65590396]
[1740472353926,0.09043304,90131.0,90125.0,0.01454085]
[1740472354092,1.53719949,90131.0,90127.0,0.01454085]
[1740472354416,1.53620089,90131.0,90129.0,0.01454085]
[1740472354715,1.53620089,90131.0,90130.0,0.44693655]
[1740472355053,1.53620089,90131.0,90130.0,0.51311396]
[1740472355231,1.53620089,90131.0,90130.0,1.21311396]
[1740472355454,0.34722966,90144.0,90135.0,0.733367]
[1740472355658,0.0779,90157.0,90135.0,0.733367]
[1740472355659,1.09953679,90171.0,90160.0,0.58149085]
[1740472355858,0.34722966,90165.0,90162.0,0.06695]
[1740472356059,0.31385279,90165.0,90163.0,0.03239449]
[1740472356202,0.10531431,90165.0,90164.0,0.09857311]
[1740472356403,0.07193744,90165.0,90164.0,0.11311396]
[1740472356621,0.05458904,90169.0,90164.0,0.11311396]
[1740472356622,0.05458904,90169.0,90166.0,0.06695]
[1740472356827,0.03856057,90176.0,90175.0,0.58149085]
[1740472357026,0.03856057,90176.0,90175.0,0.61311396]
[1740472357287,0.03856057,90176.0,90175.0,0.53162311]
[1740472357563,0.03856057,90176.0,90175.0,0.54826311]
[1740472358004,0.11726057,90176.0,90175.0,0.74826311]
[1740472358175,0.16706057,90176.0,90175.0,0.74826311]
[1740472358350,0.16706057,90176.0,90175.0,1.31556311]
[1740472358733,0.11726057,90176.0,90175.0,1.65360396]
[1740472359343,0.11726057,90176.0,90175.0,1.66060396]
[1740472359545,0.11726057,90176.0,90175.0,2.05360396]
[1740472359966,0.11726057,90176.0,90175.0,2.06060396]
[1740472360366,0.11726057,90176.0,90175.0,4.05360396]
[1740472360536,0.11726057,90176.0,90175.0,4.06060396]
[1740472360736,0.11726057,90176.0,90175.0,4.05360396]
[1740472361457,0.11726057,90176.0,90175.0,4.02242311]
[1740472361665,0.11726057,90176.0,90175.0,4.03902311]
[1740472362106,0.11726057,90176.0,90175.0,4.06056396]
[1740472362528,0.11726057,90176.0,90175.0,3.53902311]
[1740472362743,0.06720256,90176.0,90175.0,3.60522311]
[1740472362898,0.11690256,90176.0,90175.0,3.60522311]
[1740472363118,0.11690256,90176.0,90175.0,3.59822311]
[1740472363322,0.11690256,90176.0,90175.0,3.60522311]
[1740472363570,0.11690256,90176.0,90175.0,2.9166]
[1740472363916,0.11690256,90176.0,90175.0,3.2236]
[1740472364744,0.06720256,90176.0,90175.0,3.74589085]
[1740472364944,0.06805036,90176.0,90175.0,4.28869085]
[1740472365145,0.06805036,90176.0,90175.0,3.5899]
[1740472365344,0.06805036,90176.0,90175.0,4.0829]
[1740472365751,0.06805036,90176.0,90175.0,4.7899]
[1740472365950,0.06805036,90176.0,90175.0,4.2829]
[1740472366170,1.18897123,90176.0,90175.0,3.949977]
[1740472366372,1.18897123,90176.0,90175.0,3.256977]
[1740472366580,1.18897123,90176.0,90175.0,3.240377]
[1740472366840,1.09953679,90176.0,90175.0,3.249977]
[1740472367151,1.06616881,90176.0,90175.0,3.75566785]
[1740472367520,0.0008482,90204.0,90199.0,0.63184085]
[1740472367636,1.09973679,90200.0,90199.0,0.01454085]
[1740472367836,1.10072399,90200.0,90199.0,0.5]
[1740472368148,1.09973679,90200.0,90199.0,0.53137834]
[1740472368317,1.09973679,90200.0,90199.0,0.06474334]
[1740472368723,1.09973679,90200.0,90199.0,0.56474334]
[1740472369224,1.17503679,90200.0,90199.0,0.56474334]
[1740472369607,1.17503679,90200.0,90199.0,0.98134334]
[1740472370010,1.17503679,90200.0,90199.0,0.98834334]
[1740472370228,1.17503679,90200.0,90199.0,0.98134334]
[1740472370589,1.17503679,90200.0,90199.0,0.98834334]
[1740472370822,1.17503679,90200.0,90199.0,0.98134334]
[1740472371208,1.17503679,90200.0,90199.0,0.98834334]
[1740472371833,1.17503679,90200.0,90199.0,1.03869334]
[1740472372036,1.17503679,90200.0,90199.0,1.05529334]
[1740472372444,1.17503679,90200.0,90199.0,1.04829334]
[1740472372868,1.17503679,90200.0,90199.0,1.05529334]
[1740472373083,1.17503679,90200.0,90199.0,1.37179334]
[1740472373592,1.17503679,90200.0,90199.0,1.37879334]
[1740472374159,1.17503679,90200.0,90199.0,5.37179334]
[1740472374482,1.17503679,90200.0,90199.0,5.37879334]
[1740472374778,1.17503679,90200.0,90199.0,5.37875334]
[1740472375215,1.17503679,90200.0,90199.0,5.31180334]
[1740472375892,1.17503679,90200.0,90199.0,5.30480334]
[1740472376100,1.17503679,90200.0,90199.0,5.31180334]
[1740472376406,1.17588379,90200.0,90199.0,4.77143834]
[1740472376597,1.17588379,90200.0,90199.0,5.27843834]
[1740472377361,1.17568379,90200.0,90199.0,5.27143834]
[1740472377789,1.17568379,90200.0,90199.0,5.27843834]
[1740472378153,0.89640057,90200.0,90199.0,5.27843834]
[1740472378360,0.0008482,90204.0,90200.0,0.13184085]
[1740472378587,1.10038499,90204.0,90202.0,0.19879085]
[1740472378780,1.10038499,90204.0,90203.0,0.48748943]
[1740472379015,1.10038499,90204.0,90203.0,0.48671919]
[1740472379641,1.10038499,90204.0,90203.0,0.88671919]
[1740472379841,0.08943444,90215.0,90211.0,0.5]
[1740472380138,1.09953679,90215.0,90212.0,0.0321483]
[1740472380501,1.09953679,90215.0,90212.0,0.0655113]
[1740472380723,1.09953679,90215.0,90212.0,0.03413296]
[1740472382130,1.09953679,90215.0,90213.0,0.3235]
[1740472382334,1.09953679,90215.0,90214.0,0.00076998]
[1740472382596,1.09953679,90215.0,90214.0,0.40076998]
[1740472382743,1.09953679,90215.0,90214.0,0.4]
[1740472383760,1.09953679,90215.0,90214.0,0.44848167]
[1740472384018,1.09953679,90215.0,90214.0,0.93192167]
[1740472384221,1.28803679,90215.0,90214.0,0.94848167]
[1740472384427,1.49803679,90215.0,90214.0,0.94848167]
[1740472384638,1.22803679,90215.0,90214.0,0.94848167]
[1740472385318,1.49803679,90215.0,90214.0,0.94848167]
[1740472385531,1.49803679,90215.0,90214.0,0.95548167]
[1740472385735,1.49803679,90215.0,90214.0,0.94848167]
[1740472386114,1.49803679,90215.0,90214.0,0.95548167]
[1740472386323,1.49803679,90215.0,90214.0,0.94848167]
[1740472387340,1.49803679,90215.0,90214.0,0.95548167]
[1740472388128,1.50908189,90215.0,90214.0,0.95548167]
[1740472388329,1.50992889,90215.0,90214.0,2.95548167]
[1740472388637,1.50992889,90215.0,90214.0,2.94848167]
[1740472388853,1.50992889,90215.0,90214.0,2.95548167]
[1740472389179,1.50992889,90215.0,90214.0,2.94848167]
[1740472389503,1.44992889,90215.0,90214.0,2.95548167]
[1740472389672,1.50992889,90215.0,90214.0,2.95548167]
[1740472389875,1.50992889,90215.0,90214.0,2.94848167]
[1740472390245,0.4103921,90215.0,90214.0,2.95548167]
[1740472390436,1.50992889,90215.0,90214.0,2.94848167]
[1740472390898,1.45987545,90215.0,90214.0,2.94848167]
[1740472392501,1.45987545,90215.0,90214.0,2.95548167]
[1740472392704,1.45987545,90215.0,90214.0,2.94848167]
[1740472393123,1.45987545,90215.0,90214.0,2.95548167]
[1740472393868,1.50827545,90215.0,90214.0,2.94848167]
[1740472394368,1.50827545,90215.0,90214.0,2.95548167]
[1740472395419,1.50827545,90215.0,90214.0,2.93892167]
[1740472395822,1.50827545,90215.0,90214.0,2.76082167]
[1740472396161,1.44142889,90215.0,90214.0,1.94622167]
[1740472396327,1.45596974,90215.0,90214.0,1.93521728]
[1740472396724,1.39596974,90215.0,90214.0,1.93521728]
[1740472397278,1.39596974,90215.0,90214.0,1.92821728]
[1740472397482,1.84386974,90215.0,90214.0,1.9179014]
[1740472397646,1.84386974,90215.0,90214.0,2.3179014]
[1740472397847,1.84386974,90215.0,90214.0,2.3109014]
[1740472398013,1.84386974,90215.0,90214.0,2.3179014]
[1740472398640,1.84386974,90215.0,90214.0,2.1673714]
[1740472398841,1.84386974,90215.0,90214.0,1.7673714]
[1740472399302,1.84386974,90215.0,90214.0,1.7603714]
[1740472399785,1.84386974,90215.0,90214.0,1.7673714]
[1740472399957,1.84386974,90215.0,90214.0,1.7603714]
[1740472400403,1.84386974,90215.0,90214.0,1.7673714]
[1740472400625,1.72386974,90215.0,90214.0,2.1673714]
[1740472401012,1.78386974,90215.0,90214.0,2.1603714]
[1740472401218,1.84386974,90215.0,90214.0,1.99388724]
[1740472401498,1.93896974,90215.0,90214.0,1.56752148]
[1740472401703,1.93896974,90215.0,90214.0,1.53415572]
[1740472401878,1.93896974,90215.0,90214.0,1.3034517]
[1740472402092,1.93896974,90215.0,90214.0,1.27008594]
[1740472402281,1.93896974,90215.0,90214.0,1.12242018]
[1740472402632,1.93896974,90215.0,90214.0,1.08905442]
[1740472402782,1.93896974,90215.0,90214.0,1.05568866]
[1740472403186,1.87896974,90215.0,90214.0,1.04868866]
[1740472403399,1.81896974,90215.0,90214.0,1.05568866]
[1740472403583,1.87896974,90215.0,90214.0,1.45568866]
[1740472403785,1.87896974,90215.0,90214.0,1.44868866]
[1740472403981,1.87896974,90215.0,90214.0,1.45568866]
[1740472404185,1.87896974,90215.0,90214.0,1.43271466]
[1740472404389,1.87896974,90215.0,90214.0,1.42571466]
[1740472404677,1.87896974,90215.0,90214.0,1.03244377]
[1740472404907,1.87896974,90215.0,90214.0,1.02544377]
[1740472405143,1.93896974,90215.0,90214.0,0.54208221]
[1740472405311,0.39,90207.0,90206.0,0.25927159]
[1740472405466,0.39,90200.0,90199.0,3.84911588]
[1740472405661,1.51512274,90200.0,90199.0,3.6808804]
[1740472405866,1.51512274,90200.0,90199.0,3.32628885]
[1740472406066,1.51512274,90200.0,90199.0,3.22088842]
[1740472406291,1.51512274,90200.0,90199.0,3.0982774]
[1740472406292,1.92237718,90200.0,90199.0,3.0982774]
[1740472406492,1.92237718,90200.0,90199.0,3.06489887]
[1740472406692,1.84302274,90200.0,90199.0,2.43564213]
[1740472406895,1.84302274,90200.0,90199.0,2.2584736]
[1740472407099,1.84302274,90200.0,90199.0,2.23593676]
[1740472407325,1.84302274,90200.0,90199.0,1.62417619]
[1740472407496,1.55848189,90200.0,90199.0,1.66332791]
[1740472408118,1.76848189,90200.0,90199.0,1.66332791]
[1740472408313,1.82848189,90200.0,90199.0,1.65632791]
[1740472408554,1.82848189,90200.0,90199.0,2.05632791]